bitfinex-derivatives/quotes_ETHF0:USTF0_20260118
["timestamp","ask_amount","ask_price","bid_price","bid_amount"]
[1768722713217,0.97412313,3311.2,3309.7,1.11005517]
[1768722713417,1.0622461,3311.1,3309.7,1.11005517]
[1768722713618,1.0622461,3311.0,3309.7,1.11005517]
[1768722713810,0.97412313,3310.8,3309.7,0.13593204]
[1768722714017,0.97412313,3310.3,3309.3,0.13737031]
[1768722714216,0.97412313,3310.1,3308.9,1.97549002]
[1768722714716,0.97412313,3309.9,3308.9,0.13737031]
[1768722717211,0.97412313,3310.1,3308.9,0.13737031]
[1768722717923,0.13381142,3310.6,3308.9,0.13737031]
[1768722718123,0.97412313,3310.1,3308.9,0.13737031]
[1768722720623,0.97412313,3310.3,3309.0,0.97412313]
[1768722720825,0.97412313,3310.6,3309.2,0.97412313]
[1768722721120,1.05896488,3310.5,3309.2,0.97412313]
[1768722721316,1.05896488,3310.4,3309.2,0.97412313]
[1768722721516,0.97412313,3310.6,3309.2,0.97412313]
[1768722721818,1.05879421,3310.5,3309.2,0.97412313]
[1768722722021,1.05879421,3310.4,3309.2,1.11149344]
[1768722722222,0.97412313,3310.6,3309.2,1.11149344]
[1768722722520,1.05862439,3310.5,3309.2,1.11149344]
[1768722722819,1.05862439,3310.4,3309.2,1.11149344]
[1768722723019,0.97412313,3310.6,3309.2,1.11149344]
[1768722723219,1.05858376,3310.5,3309.2,1.11149344]
[1768722723420,1.05858376,3310.4,3309.2,1.11149344]
[1768722723621,0.97412313,3310.6,3309.2,1.11149344]
[1768722723821,1.05848464,3310.5,3309.2,0.13737031]
[1768722724021,2.03260777,3310.4,3309.2,0.13737031]
[1768722724221,0.97412313,3310.4,3309.2,0.13737031]
[1768722725424,0.13381142,3310.8,3309.2,0.13737031]
[1768722725622,1.05828326,3310.7,3309.2,0.13737031]
[1768722725823,1.05828326,3310.6,3309.2,0.13737031]
[1768722726124,1.05828326,3310.5,3309.2,0.13737031]
[1768722726319,1.05828326,3310.4,3309.2,0.13737031]
[1768722726519,0.13381142,3310.8,3309.2,0.13737031]
[1768722726721,1.058215,3310.7,3309.2,0.13737031]
[1768722726920,1.058215,3310.6,3309.2,0.13737031]
[1768722727226,1.058215,3310.5,3309.2,0.13737031]
[1768722727424,0.13381142,3310.8,3309.2,0.13737031]
[1768722727425,1.058215,3310.4,3309.2,0.13737031]
[1768722727626,0.13381142,3310.8,3309.2,0.13737031]
[1768722727826,0.13381142,3310.6,3308.7,0.13737031]
[1768722728021,1.05816725,3310.5,3308.7,0.13737031]
[1768722728325,1.05816725,3310.4,3308.7,0.13737031]
[1768722728526,0.13381142,3310.6,3308.7,0.13737031]
[1768722728729,1.05813492,3310.5,3308.7,0.13737031]
[1768722729025,1.05813492,3310.4,3308.7,0.13737031]
[1768722729225,0.13381142,3310.6,3308.7,0.13737031]
[1768722729425,1.05816627,3310.5,3308.7,0.13737031]
[1768722729628,1.05816627,3310.4,3308.7,0.13737031]
[1768722729927,0.13381142,3310.6,3308.7,0.13737031]
[1768722730127,1.05818729,3310.5,3308.7,0.13737031]
[1768722730322,1.05818729,3310.4,3308.7,0.13737031]
[1768722730623,0.13381142,3310.6,3308.7,0.13737031]
[1768722730824,1.05820144,3310.5,3308.7,0.13737031]
[1768722731021,1.05820144,3310.4,3308.7,0.13737031]
[1768722731221,0.13381142,3310.6,3308.7,0.13737031]
[1768722731521,1.0582291,3310.5,3308.7,0.13737031]
[1768722731721,1.0582291,3310.4,3308.7,0.13737031]
[1768722731931,0.13381142,3310.6,3308.7,0.13737031]
[1768722732131,1.05822745,3310.5,3308.7,0.13737031]
[1768722732331,1.05822745,3310.4,3308.7,0.13737031]
[1768722732537,0.13381142,3310.6,3308.7,0.13737031]
[1768722732733,1.05828103,3310.5,3308.7,0.13737031]
[1768722732935,1.05828103,3310.4,3308.7,0.13737031]
[1768722733129,0.13381142,3310.6,3308.7,0.13737031]
[1768722733327,1.05835539,3310.5,3308.7,0.13737031]
[1768722733528,1.05835539,3310.4,3308.7,0.13737031]
[1768722733727,0.13381142,3310.6,3308.7,0.13737031]
[1768722734036,1.05835485,3310.5,3308.7,0.13737031]
[1768722734234,1.05835485,3310.4,3308.7,0.13737031]
[1768722734533,0.13381142,3310.6,3308.7,0.13737031]
[1768722734729,1.05845242,3310.5,3308.7,0.13737031]
[1768722734929,1.05845242,3310.4,3308.7,0.13737031]
[1768722735131,0.13381142,3310.6,3308.7,0.13737031]
[1768722735330,1.05857631,3310.5,3308.7,0.13737031]
[1768722735530,1.05857631,3310.4,3308.7,0.13737031]
[1768722735731,0.13381142,3310.6,3308.7,0.13737031]
[1768722735925,1.0585724,3310.5,3308.7,0.13737031]
[1768722736230,1.0585724,3310.4,3308.7,0.13737031]
[1768722736427,0.13381142,3310.6,3308.7,0.13737031]
[1768722736632,1.05871989,3310.5,3308.7,0.13737031]
[1768722736836,1.05871989,3310.4,3308.7,0.13737031]
[1768722737034,0.13381142,3310.6,3308.7,0.13737031]
[1768722737234,1.05885697,3310.5,3308.7,0.13737031]
[1768722737432,1.05885697,3310.4,3308.7,0.13737031]
[1768722737632,0.13381142,3310.6,3308.7,0.13737031]
[1768722737838,1.05889965,3310.5,3308.7,0.13737031]
[1768722738028,1.05889965,3310.4,3308.7,0.13737031]
[1768722738227,0.13381142,3310.6,3308.7,0.13737031]
[1768722738425,1.05911226,3310.5,3308.7,0.13737031]
[1768722738628,1.05911226,3310.4,3308.7,0.13737031]
[1768722738840,0.13381142,3310.6,3308.7,0.13737031]
[1768722739030,1.05911226,3310.5,3308.7,0.13737031]
[1768722739229,1.05911226,3310.4,3308.7,0.13737031]
[1768722739433,1.05911226,3310.3,3308.7,0.13737031]
[1768722739635,0.13381142,3310.6,3308.7,0.13737031]
[1768722739935,1.05936965,3310.5,3308.7,0.13737031]
[1768722740134,1.05936965,3310.4,3308.7,0.13737031]
[1768722740330,1.05936965,3310.3,3308.7,0.13737031]
[1768722740530,0.13381142,3310.6,3308.7,0.13737031]
[1768722740830,1.05968571,3310.5,3308.7,0.13737031]
[1768722741133,1.05968571,3310.4,3308.7,0.13737031]
[1768722741332,1.05968571,3310.3,3308.7,0.13737031]
[1768722741533,0.13381142,3310.6,3308.7,0.13737031]
[1768722741734,1.06007631,3310.5,3308.7,0.13737031]
[1768722741934,1.06007631,3310.4,3308.7,0.13737031]
[1768722742137,1.06007631,3310.3,3308.7,0.13737031]
[1768722742337,1.06007631,3310.2,3308.7,0.13737031]
[1768722742537,0.13381142,3310.6,3308.7,0.13737031]
[1768722742844,1.06063202,3310.5,3308.7,0.13737031]
[1768722743145,1.06063202,3310.4,3308.7,0.13737031]
[1768722743345,1.06063202,3310.3,3308.7,0.13737031]
[1768722743533,1.06063202,3310.2,3308.7,0.13737031]
[1768722743738,1.06063202,3310.1,3308.7,0.13737031]
[1768722743930,0.13381142,3310.6,3308.7,0.13737031]
[1768722744137,1.75963325,3310.6,3308.7,0.13737031]
[1768722744434,1.39350272,3310.5,3308.7,0.13737031]
[1768722744630,1.06172652,3310.4,3308.7,0.13737031]
[1768722744845,1.06172652,3310.3,3308.7,0.13737031]
[1768722745043,1.06172652,3310.2,3308.7,0.13737031]
[1768722745242,1.06172652,3310.1,3308.7,0.13737031]
[1768722745544,1.75963325,3310.6,3308.7,0.13737031]
[1768722745844,1.3939631,3310.5,3308.7,0.13737031]
[1768722746035,1.06218236,3310.4,3308.7,0.13737031]
[1768722746236,1.06218236,3310.3,3308.7,0.13737031]
[1768722746436,1.06218236,3310.2,3308.7,0.13737031]
[1768722746745,1.06218236,3310.1,3308.7,0.13737031]
[1768722746945,0.13381142,3310.6,3308.7,0.13737031]
[1768722747150,1.39396129,3310.5,3308.7,0.13737031]
[1768722747446,1.06218118,3310.4,3308.7,0.13737031]
[1768722747645,1.06218118,3310.3,3308.7,0.13737031]
[1768722747831,1.06218118,3310.2,3308.7,0.13737031]
[1768722748035,1.06218118,3310.1,3308.7,0.13737031]
[1768722748230,0.13381142,3310.6,3308.7,0.13737031]
[1768722748436,1.39395334,3310.5,3308.7,0.13737031]
[1768722748642,1.06217403,3310.4,3308.7,0.13737031]
[1768722748842,1.06217403,3310.3,3308.7,0.13737031]
[1768722749041,1.06217403,3310.2,3308.7,0.13737031]
[1768722749239,1.06217403,3310.1,3308.7,0.13737031]
[1768722749448,0.13381142,3310.6,3308.7,0.13737031]
[1768722749646,1.39394662,3310.5,3308.7,0.13737031]
[1768722749849,1.06216995,3310.4,3308.7,0.13737031]
[1768722750046,1.06216995,3310.3,3308.7,0.13737031]
[1768722750239,1.06216995,3310.2,3308.7,0.13737031]
[1768722750441,1.62582183,3310.7,3309.1,0.13740472]
[1768722750643,1.39398269,3310.6,3309.1,0.13740472]
[1768722750846,1.06219832,3310.5,3309.1,0.13740472]
[1768722751043,1.06219832,3310.4,3309.1,0.13740472]
[1768722751239,1.06219832,3310.3,3309.1,0.13740472]
[1768722751439,1.06219832,3310.2,3309.1,0.13740472]
[1768722751640,1.62582183,3310.8,3309.1,0.13740472]
[1768722751949,0.33172532,3310.7,3309.1,0.13740472]
[1768722752145,1.06203846,3310.6,3309.1,0.13740472]
[1768722752448,1.06203846,3310.5,3309.1,0.13740472]
[1768722752649,1.06203846,3310.4,3309.1,0.13740472]
[1768722752849,1.06203846,3310.3,3309.1,0.13740472]
[1768722753050,1.06203846,3310.2,3309.1,0.13740472]
[1768722753348,1.62582183,3310.8,3309.1,0.13740472]
[1768722753543,0.33167442,3310.7,3309.1,0.13740472]
[1768722753751,1.06186551,3310.6,3309.1,0.13740472]
[1768722754048,1.06186551,3310.5,3309.1,0.13740472]
[1768722754247,1.06186551,3310.4,3309.1,0.13740472]
[1768722754443,1.62582183,3310.8,3309.1,0.13740472]
[1768722754444,1.06186551,3310.3,3309.1,0.13740472]
[1768722754645,1.62582183,3310.8,3309.1,0.13740472]
[1768722754852,0.33165299,3310.7,3309.1,0.13740472]
[1768722755052,1.06179954,3310.6,3309.1,0.13740472]
[1768722755350,1.06179954,3310.5,3309.1,0.13740472]
[1768722755543,1.62582183,3310.8,3309.1,0.13740472]
[1768722755544,1.06179954,3310.4,3309.1,0.13740472]
[1768722755740,1.06179954,3310.3,3309.1,0.13740472]
[1768722755946,1.77689183,3310.9,3309.1,0.13740472]
[1768722756145,1.39337901,3310.8,3309.1,0.13740472]
[1768722756342,1.06174341,3310.7,3309.1,0.13740472]
[1768722756543,1.06174341,3310.6,3309.1,0.13740472]
[1768722756753,1.06174341,3310.5,3309.1,0.13740472]
[1768722757050,1.06174341,3310.4,3309.1,0.13740472]
[1768722757252,1.06174341,3310.3,3309.1,0.13740472]
[1768722757553,1.77689183,3310.9,3309.1,0.13740472]
[1768722757855,1.39316989,3310.8,3309.1,0.13740472]
[1768722758054,1.06158312,3310.7,3309.1,0.13740472]
[1768722758241,1.06158312,3310.6,3309.1,0.13740472]
[1768722758443,1.06158312,3310.5,3309.1,0.13740472]
[1768722758644,1.06158312,3310.4,3309.1,0.13740472]
[1768722758943,1.06158312,3310.3,3309.1,0.13740472]
[1768722759143,1.77689183,3310.9,3309.1,0.13740472]
[1768722759344,1.39305112,3310.8,3309.1,0.13740472]
[1768722759556,1.06148043,3310.7,3309.1,0.13740472]
[1768722759755,1.06148043,3310.6,3309.1,0.13740472]
[1768722760051,1.06148043,3310.5,3309.1,0.13740472]
[1768722760250,1.06148043,3310.4,3309.1,0.13740472]
[1768722760452,1.77689183,3310.9,3309.1,0.13740472]
[1768722760641,1.39298777,3310.8,3309.1,0.13740472]
[1768722760841,1.0614422,3310.7,3309.1,0.13740472]
[1768722761050,1.0614422,3310.6,3309.1,0.13740472]
[1768722761252,1.0614422,3310.5,3309.1,0.13740472]
[1768722761454,1.0614422,3310.4,3309.1,0.13740472]
[1768722761751,1.77689183,3310.9,3309.1,0.13740472]
[1768722761953,1.39294783,3310.8,3309.1,0.13740472]
[1768722762150,1.0614117,3310.7,3309.1,0.13740472]
[1768722762344,1.0614117,3310.6,3309.1,0.13740472]
[1768722762545,1.0614117,3310.5,3309.1,0.13740472]
[1768722762844,1.0614117,3310.4,3309.1,0.13740472]
[1768722763045,1.91906468,3310.9,3309.1,0.13740472]
[1768722763246,1.3929164,3310.8,3309.1,0.13740472]
[1768722763447,1.06138769,3310.7,3309.1,0.13740472]
[1768722763655,1.06138769,3310.6,3309.1,0.13740472]
[1768722763855,1.06138769,3310.5,3309.1,0.13740472]
[1768722764156,1.06138769,3310.4,3309.1,0.13740472]
[1768722764351,1.91906468,3310.9,3309.1,0.13740472]
[1768722764550,1.39287949,3310.8,3309.1,0.13740472]
[1768722764752,1.06135826,3310.7,3309.1,0.13740472]
[1768722765050,1.06135826,3310.6,3309.1,0.13740472]
[1768722765246,1.06135826,3310.5,3309.1,0.13740472]
[1768722765446,1.06135826,3310.4,3309.1,0.13740472]
[1768722765649,1.91906468,3310.9,3309.1,0.13740472]
[1768722765847,1.39287178,3310.8,3309.1,0.13740472]
[1768722766049,1.06135238,3310.7,3309.1,0.13740472]
[1768722766249,1.06135238,3310.6,3309.1,0.13740472]
[1768722766449,1.06135238,3310.5,3309.1,0.13740472]
[1768722766749,1.06135238,3310.4,3309.1,0.13740472]
[1768722766949,1.91906468,3310.9,3309.1,0.13740472]
[1768722767149,1.39286375,3310.8,3309.1,0.13740472]
[1768722767357,1.06134627,3310.7,3309.1,0.13740472]
[1768722767558,1.06134627,3310.6,3309.1,0.13740472]
[1768722767755,1.91906468,3310.9,3309.1,0.13740472]
[1768722767756,1.06134627,3310.5,3309.1,0.13740472]
[1768722767955,1.06134627,3310.4,3309.1,0.13740472]
[1768722768162,1.91906468,3310.9,3309.1,0.13740472]
[1768722768354,1.3926782,3310.8,3309.1,0.13740472]
[1768722768656,1.06120677,3310.7,3309.1,0.13740472]
[1768722768960,1.06120677,3310.6,3309.1,0.13740472]
[1768722769160,1.06120677,3310.5,3309.1,0.13740472]
[1768722769362,1.06120677,3310.4,3309.1,0.13740472]
[1768722769562,1.91906468,3310.9,3309.1,0.13740472]
[1768722769754,1.39269342,3310.8,3309.1,0.13740472]
[1768722769957,1.06121647,3310.7,3309.1,0.13740472]
[1768722770156,1.06121647,3310.6,3309.1,0.13740472]
[1768722770454,1.06121647,3310.5,3309.1,0.13740472]
[1768722770650,1.06121647,3310.4,3309.1,0.13740472]
[1768722770852,1.91906468,3310.9,3309.1,0.13740472]
[1768722771057,1.39267484,3310.8,3309.1,0.13740472]
[1768722771255,1.06120229,3310.7,3309.1,0.13740472]
[1768722771459,1.06120229,3310.6,3309.1,0.13740472]
[1768722771662,1.06120229,3310.5,3309.1,0.13740472]
[1768722771863,1.06120229,3310.4,3309.1,0.13740472]
[1768722772061,1.91906468,3310.9,3309.1,0.13740472]
[1768722772361,1.39269684,3310.8,3309.1,0.13740472]
[1768722772562,1.0612194,3310.7,3309.1,0.13740472]
[1768722772764,1.0612194,3310.6,3309.1,0.13740472]
[1768722772967,1.0612194,3310.5,3309.1,0.13740472]
[1768722773164,1.0612194,3310.4,3309.1,0.13740472]
[1768722773366,1.0612194,3310.3,3309.1,0.13740472]
[1768722773565,0.13488374,3310.8,3309.1,0.13740472]
[1768722773861,1.06281138,3310.7,3309.1,0.13740472]
[1768722774063,1.06281138,3310.6,3309.1,0.13740472]
[1768722774263,1.06281138,3310.5,3309.1,0.13740472]
[1768722774565,1.06281138,3310.4,3309.1,0.13740472]
[1768722774766,1.06281138,3310.3,3309.1,0.13740472]
[1768722774961,0.13488374,3310.8,3309.1,0.13740472]
[1768722775261,1.06284714,3310.7,3309.1,0.13740472]
[1768722775561,1.06284714,3310.6,3309.1,0.13740472]
[1768722775763,1.06284714,3310.5,3309.1,0.13740472]
[1768722775962,1.06284714,3310.4,3309.1,0.13740472]
[1768722776259,1.06284714,3310.3,3309.1,0.13740472]
[1768722776460,0.13488374,3310.8,3309.1,0.13740472]
[1768722776659,1.06295138,3310.7,3309.1,0.13740472]
[1768722776861,1.06295138,3310.6,3309.1,0.13740472]
[1768722777067,1.06295138,3310.5,3309.1,0.13740472]
[1768722777267,1.06295138,3310.4,3309.1,0.13740472]
[1768722777577,1.06295138,3310.3,3309.1,0.13740472]
[1768722777768,0.13488374,3310.8,3309.1,0.13740472]
[1768722777958,1.06294936,3310.7,3309.1,0.13740472]
[1768722778263,1.06294936,3310.6,3309.1,0.13740472]
[1768722778464,1.06294936,3310.5,3309.1,0.13740472]
[1768722778664,1.06294936,3310.4,3309.1,0.13740472]
[1768722778865,1.06294936,3310.3,3309.1,0.13740472]
[1768722779170,0.13488374,3310.8,3309.1,0.13740472]
[1768722779467,1.06313071,3310.7,3309.1,0.13740472]
[1768722779667,0.13488374,3310.8,3309.1,0.13740472]
[1768722779668,1.06313071,3310.6,3309.1,0.13740472]
[1768722779869,1.06313071,3310.5,3309.1,0.13740472]
[1768722780062,1.06313071,3310.4,3309.1,0.13740472]
[1768722780262,1.06313071,3310.3,3309.1,0.13740472]
[1768722780462,1.76070557,3310.8,3309.1,0.13740472]
[1768722780666,1.39493024,3310.7,3309.1,0.13740472]
[1768722780867,1.06328361,3310.6,3309.4,0.97455868]
[1768722781171,1.06328361,3310.5,3309.4,0.97455868]
[1768722781370,1.06328361,3310.4,3309.4,0.97455868]
[1768722781560,1.06328361,3310.3,3309.4,0.97455868]
[1768722781760,0.13488374,3310.8,3309.4,0.97455868]
[1768722781961,1.06323684,3310.7,3309.4,0.97455868]
[1768722782160,1.06323684,3310.6,3309.4,0.97455868]
[1768722782463,0.13488374,3310.8,3309.4,0.97455868]
[1768722782464,1.06323684,3310.5,3309.4,0.97455868]
[1768722782664,1.06323684,3310.4,3309.4,0.97455868]
[1768722782865,1.06323684,3310.3,3309.4,0.97455868]
[1768722783065,0.13488374,3310.8,3309.4,0.97455868]
[1768722783272,1.06324903,3310.7,3309.4,0.97455868]
[1768722783469,1.06324903,3310.6,3309.4,0.97455868]
[1768722783668,1.06324903,3310.5,3309.4,0.97455868]
[1768722783864,1.06324903,3310.4,3309.4,0.97455868]
[1768722784163,1.06324903,3310.3,3309.4,0.97455868]
[1768722784365,0.13488374,3310.8,3309.4,0.97455868]
[1768722784671,1.06327713,3310.7,3309.4,0.97455868]
[1768722784871,1.06327713,3310.6,3309.4,0.97455868]
[1768722785061,1.06327713,3310.5,3309.4,0.97455868]
[1768722785259,1.06327713,3310.4,3309.6,0.97421757]
[1768722785463,1.06327713,3310.3,3309.6,0.97421757]
[1768722785757,1.77689183,3310.9,3309.6,0.97421757]
[1768722785961,1.39490611,3310.8,3309.6,0.97421757]
[1768722786157,1.063271,3310.7,3309.8,0.97421757]
[1768722786362,1.063271,3310.6,3309.8,0.97421757]
[1768722786561,1.77689183,3310.9,3309.8,0.97421757]
[1768722786562,1.063271,3310.5,3309.8,0.97421757]
[1768722786758,1.063271,3310.4,3309.8,0.97421757]
[1768722786973,1.063271,3310.3,3309.8,0.97421757]
[1768722787168,1.77689183,3310.9,3309.8,0.97421757]
[1768722787368,1.39483348,3310.8,3309.8,0.97421757]
[1768722787569,1.06321763,3310.7,3309.8,0.97421757]
[1768722787874,1.06321763,3310.6,3309.8,0.97421757]
[1768722788170,1.06321763,3310.5,3309.8,0.97421757]
[1768722788370,1.06321763,3310.4,3309.8,0.97421757]
[1768722788575,1.77689183,3310.9,3309.8,0.97421757]
[1768722788873,1.39478848,3310.8,3309.8,0.97421757]
[1768722789073,1.0631797,3310.7,3309.8,0.97421757]
[1768722789271,1.0631797,3310.6,3309.8,0.97421757]
[1768722789470,1.0631797,3310.5,3309.8,0.97421757]
[1768722789663,1.62582183,3311.0,3309.8,0.97421757]
[1768722789863,0.33161691,3310.9,3309.8,0.97421757]
[1768722790071,1.06309572,3310.8,3309.8,0.97421757]
[1768722790264,1.06309572,3310.7,3309.8,0.97421757]
[1768722790468,1.70632248,3311.1,3309.8,0.97421757]
[1768722790469,1.06309572,3310.6,3309.8,0.97421757]
[1768722790669,3.33214431,3311.1,3310.0,0.97421757]
[1768722790869,1.39464481,3311.0,3310.0,0.97421757]
[1768722791068,1.06304648,3310.9,3310.0,0.97421757]
[1768722791368,1.06304648,3310.8,3310.0,0.97421757]
[1768722791575,1.06304648,3310.7,3310.0,0.97421757]
[1768722791773,1.06304648,3310.6,3310.0,0.97421757]
[1768722791974,1.70632248,3311.1,3310.0,0.97421757]
[1768722792178,1.06293908,3311.0,3310.0,0.97421757]
[1768722792377,1.06293908,3310.9,3309.8,0.97421757]
[1768722792672,2.03715665,3310.8,3309.4,1.83965807]
[1768722792879,1.06293908,3310.7,3309.4,1.83965807]
[1768722793071,0.97421757,3310.6,3309.4,1.703]
[1768722793265,0.97421757,3310.6,3309.1,1.12535757]
[1768722793470,0.97421757,3310.6,3309.2,1.561]
[1768722795570,2.03650128,3310.5,3309.2,1.561]
[1768722795770,0.97421757,3310.5,3309.2,1.561]
[1768722795971,0.97421757,3310.3,3309.2,1.561]
[1768722797772,0.13488374,3310.4,3309.2,1.561]
[1768722797977,2.0364178,3310.3,3309.2,1.561]
[1768722798178,0.97421757,3310.3,3309.2,1.561]
[1768722799784,0.13488374,3310.4,3309.2,1.561]
[1768722799980,2.03671307,3310.3,3309.2,1.561]
[1768722800282,0.97421757,3310.3,3309.2,1.561]
[1768722807286,0.97421757,3310.3,3309.0,0.97421757]
[1768722810288,0.13488374,3310.4,3309.0,0.97421757]
[1768722810589,2.03433227,3310.3,3309.0,0.97421757]
[1768722810786,0.97421757,3310.3,3309.0,0.97421757]
[1768722812694,0.97421757,3310.3,3309.0,1.10530543]
[1768722812895,0.97421757,3310.7,3309.2,1.10530543]
[1768722813090,1.06042664,3310.6,3309.4,0.97421757]
[1768722813291,1.06042664,3310.5,3309.7,0.97421757]
[1768722813497,1.06042664,3310.4,3309.7,0.97421757]
[1768722813696,0.97421757,3310.9,3309.7,0.97421757]
[1768722813995,1.0604138,3310.8,3309.5,0.97421757]
[1768722814197,1.0604138,3310.7,3309.5,0.97421757]
[1768722814493,1.0604138,3310.6,3309.5,0.97421757]
[1768722814694,1.0604138,3310.5,3309.5,0.97421757]
[1768722814894,1.0604138,3310.4,3309.5,0.97421757]
[1768722815107,0.97421757,3310.9,3309.5,0.97421757]
[1768722815306,1.06041811,3310.8,3309.5,0.97421757]
[1768722815605,1.06041811,3310.7,3309.5,0.97421757]
[1768722815808,1.06041811,3310.6,3309.5,0.97421757]
[1768722816001,1.06041811,3310.5,3309.5,0.97421757]
[1768722816208,1.06041811,3310.4,3309.5,0.97421757]
[1768722816403,0.97421757,3310.9,3309.5,1.10845724]
[1768722816604,1.06045758,3310.8,3309.5,1.10845724]
[1768722816804,1.06045758,3310.7,3309.5,1.10845724]
[1768722816996,0.97421757,3310.9,3309.5,1.10845724]
[1768722816997,1.06045758,3310.6,3309.5,1.10845724]
[1768722817200,1.06045758,3310.5,3309.5,1.10845724]
[1768722817397,0.97421757,3310.9,3309.5,1.10845724]
[1768722817605,1.06045254,3310.8,3309.5,1.10845724]
[1768722817805,1.06045254,3310.7,3309.5,1.10845724]
[1768722818005,1.06045254,3310.6,3309.5,1.10845724]
[1768722818212,1.06045254,3310.5,3309.5,1.10845724]
[1768722818511,0.97421757,3310.9,3309.5,1.10845724]
[1768722818708,1.06044794,3310.8,3309.5,1.10845724]
[1768722818912,1.06044794,3310.7,3309.5,1.10845724]
[1768722819112,1.06044794,3310.6,3309.5,1.10845724]
[1768722819313,1.06044794,3310.5,3309.5,1.10845724]
[1768722819514,0.97421757,3310.9,3309.5,1.10845724]
[1768722819707,1.06045378,3310.8,3309.5,1.10845724]
[1768722819908,1.06045378,3310.7,3309.5,1.10845724]
[1768722820206,1.06045378,3310.6,3309.5,1.10845724]
[1768722820406,1.06045378,3310.5,3309.5,1.10845724]
[1768722820705,0.97421757,3310.9,3309.5,1.10845724]
[1768722820907,1.06047873,3310.8,3309.5,1.10845724]
[1768722821102,1.06047873,3310.7,3309.5,1.10845724]
[1768722821305,1.06047873,3310.6,3309.5,1.10845724]
[1768722821511,1.06047873,3310.5,3309.5,1.10845724]
[1768722821711,0.97421757,3310.9,3309.5,1.10845724]
[1768722821912,1.06052692,3310.8,3309.5,1.10845724]
[1768722822109,1.06052692,3310.7,3309.5,1.10845724]
[1768722822311,1.06052692,3310.6,3309.5,1.10845724]
[1768722822511,1.06052692,3310.5,3309.5,1.10845724]
[1768722822713,0.97421757,3310.9,3309.5,1.10845724]
[1768722822915,1.06065704,3310.8,3309.5,1.10845724]
[1768722823114,1.06065704,3310.7,3309.5,1.10845724]
[1768722823414,1.06065704,3310.6,3309.5,1.10845724]
[1768722823613,1.06065704,3310.5,3309.5,1.10845724]
[1768722823917,0.97421757,3310.9,3309.5,1.10845724]
[1768722824118,1.06080221,3310.8,3309.5,1.10845724]
[1768722824317,1.06080221,3310.7,3309.5,1.10845724]
[1768722824513,1.06080221,3310.6,3309.5,1.10845724]
[1768722824714,1.06080221,3310.5,3309.5,1.10845724]
[1768722824915,0.97421757,3310.9,3309.5,1.10845724]
[1768722825218,1.06096997,3310.8,3309.5,1.10845724]
[1768722825418,1.06096997,3310.7,3309.5,1.10845724]
[1768722825618,1.06096997,3310.6,3309.5,1.10845724]
[1768722825822,1.06096997,3310.5,3309.5,1.10845724]
[1768722826013,0.97421757,3310.9,3309.5,1.10845724]
[1768722826213,1.06100842,3310.8,3309.5,1.10845724]
[1768722826414,0.97421757,3310.9,3309.5,1.10845724]
[1768722826415,1.06100842,3310.7,3309.5,1.10845724]
[1768722826615,1.06100842,3310.6,3309.5,1.10845724]
[1768722826920,1.06100842,3310.5,3309.5,1.10845724]
[1768722827120,0.97421757,3310.9,3309.5,1.10845724]
[1768722827322,1.06098343,3310.8,3309.5,1.10845724]
[1768722827520,1.06098343,3310.7,3309.5,1.10845724]
[1768722827820,1.06098343,3310.6,3309.7,0.97421757]
[1768722828014,1.06098343,3310.5,3309.7,1.10845724]
[1768722828214,0.15106,3311.0,3309.7,1.10845724]
[1768722828514,1.06097323,3310.9,3309.7,1.10845724]
[1768722828714,1.06097323,3310.8,3309.7,1.10845724]
[1768722828916,1.06097323,3310.7,3309.7,1.10845724]
[1768722829120,1.06097323,3310.6,3309.7,1.10845724]
[1768722829418,1.06097323,3310.5,3309.7,1.10845724]
[1768722829619,0.15106,3311.0,3309.7,1.10845724]
[1768722829820,1.06095659,3310.9,3309.7,1.10845724]
[1768722830019,1.06095659,3310.8,3309.7,1.10845724]
[1768722830215,1.06095659,3310.7,3309.7,1.10845724]
[1768722830416,1.06095659,3310.6,3309.7,1.10845724]
[1768722830618,1.06095659,3310.5,3309.7,1.10845724]
[1768722830921,0.15106,3311.0,3309.7,1.10845724]
[1768722831123,1.06095983,3310.9,3309.7,1.10845724]
[1768722831321,1.06095983,3310.8,3309.7,1.10845724]
[1768722831523,1.06095983,3310.7,3309.7,0.13423967]
[1768722831724,1.06095983,3310.6,3309.7,0.13423967]
[1768722831911,1.06095983,3310.5,3309.7,0.13423967]
[1768722832114,0.15106,3311.0,3309.7,0.13423967]
[1768722832314,1.06096364,3310.9,3309.7,0.13423967]
[1768722832516,1.06096364,3310.8,3309.7,0.13423967]
[1768722832808,1.06096364,3310.7,3309.7,0.13423967]
[1768722833012,1.06096364,3310.6,3309.7,0.13423967]
[1768722833216,1.06096364,3310.5,3309.7,0.13423967]
[1768722833417,0.15106,3311.0,3309.7,0.13423967]
[1768722833623,1.06100191,3310.9,3309.7,0.13423967]
[1768722833821,1.06100191,3310.8,3309.7,0.13423967]
[1768722834024,1.06100191,3310.7,3309.7,0.13423967]
[1768722834219,1.06100191,3310.6,3309.7,0.13423967]
[1768722834417,1.06100191,3310.5,3309.7,0.13423967]
[1768722834621,0.15106,3311.0,3309.7,0.13423967]
[1768722834822,2.03524208,3310.9,3309.7,0.13423967]
[1768722835027,1.06102451,3310.8,3309.7,0.13423967]
[1768722838820,1.06102451,3310.8,3309.6,0.97421757]
[1768722839027,1.06102451,3310.8,3309.4,1.726]
[1768722839028,0.97421757,3310.7,3309.4,2.70021757]
[1768722839324,1.06102451,3310.6,3309.4,2.70021757]
[1768722841930,1.06102451,3310.6,3309.4,1.726]
[1768722842131,0.97421757,3310.5,3309.3,1.86900424]
[1768722842433,1.06102451,3310.4,3309.3,1.86900424]
[1768722845732,0.97421757,3310.7,3309.3,1.86900424]
[1768722846028,1.06188331,3310.6,3309.3,1.86900424]
[1768722846225,1.06188331,3310.5,3309.3,1.86900424]
[1768722846530,1.06188331,3310.4,3309.3,1.86900424]
[1768722846731,0.97421757,3310.7,3309.3,1.86900424]
[1768722846933,1.06189073,3310.6,3309.3,1.86900424]
[1768722847230,1.06189073,3310.5,3309.3,1.86900424]
[1768722847431,1.06189073,3310.4,3309.3,1.86900424]
[1768722847733,1.76534089,3310.9,3309.3,1.86900424]
[1768722848034,1.39378979,3310.8,3309.3,1.86900424]
[1768722848233,1.06190084,3310.7,3309.3,1.86900424]
[1768722848432,1.06190084,3310.6,3309.3,1.86900424]
[1768722848730,1.06190084,3310.5,3309.3,1.86900424]
[1768722848931,1.06190084,3310.4,3309.3,1.86900424]
[1768722849130,1.76534089,3310.9,3309.3,1.86900424]
[1768722849333,1.06191377,3310.8,3309.3,1.86900424]
[1768722849521,1.06191377,3310.7,3309.3,1.86900424]
[1768722849721,1.06191377,3310.6,3309.3,1.86900424]
[1768722849929,1.06191377,3310.5,3309.3,1.86900424]
[1768722850126,1.06191377,3310.4,3309.3,1.86900424]
[1768722850328,1.76534089,3310.9,3309.3,1.86900424]
[1768722850527,1.06191719,3310.8,3309.3,1.86900424]
[1768722850730,1.06191719,3310.7,3309.3,1.86900424]
[1768722850930,1.06191719,3310.6,3309.3,1.86900424]
[1768722851137,1.06191719,3310.5,3309.3,1.86900424]
[1768722851333,1.06191719,3310.4,3309.3,1.86900424]